fUST/lending_fUST_20250916
["ID","MTS","AMOUNT","RATE_DAILY","PERIOD"]
[385749972,1758006657807,-168.0,0.00022806,2]
[385749973,1758006657816,-420.0,0.00022814,2]
[385749974,1758006657825,-177.58255557,0.00022857,20]
[385749975,1758006657835,-2000.0,0.00022869,2]
[385749976,1758006657844,-517.0,0.00022885,20]
[385749977,1758006657853,-30417.23580558,0.00022891,2]
[385749978,1758006657863,-1680.0,0.00022921,2]
[385749979,1758006657872,-1375.31678154,0.00022968,2]
[385749980,1758006657881,-1500.0,0.00022968,2]
[385749981,1758006657890,-160.0,0.00023,3]
[385749982,1758006657899,-233.29513139,0.00023,3]
[385749983,1758006657908,-160.0,0.00023,3]
[385749984,1758006657917,-531.43424302,0.00023,3]
[385749985,1758006657926,-160.0,0.00023,3]
[385749986,1758006657936,-160.0,0.00023,2]
[385749987,1758006657945,-531.43424302,0.00023,3]
[385749988,1758006657954,-847.61663983,0.00023,3]
[385749989,1758006657963,-480.0,0.00023013,3]
[385749990,1758006657973,-176.07166876,0.00023013,3]
[385749991,1758006657982,-246.24865758,0.00023013,3]
[385749992,1758006657992,-480.0,0.00023013,3]
[385749993,1758006658001,-480.0,0.00023013,3]
[385749994,1758006658010,-480.0,0.00023013,3]
[385749995,1758006658019,-480.0,0.00023013,3]
[385749996,1758006658029,-468.24274041,0.00023013,3]
[385749997,1758006658039,-607.00133531,0.00023013,3]
[385749998,1758006658049,-468.15418675,0.00023013,3]
[385749999,1758006658059,-480.54225241,0.00023013,3]
[385750000,1758006658068,-480.0,0.00023013,3]
[385750001,1758006658077,-565.62496437,0.00023013,3]
[385750002,1758006658087,-480.0,0.00023013,3]
[385750003,1758006658095,-480.0,0.00023013,3]
[385750004,1758006658104,-480.0,0.00023013,3]
[385750005,1758006658113,-869.02,0.00023013,3]
[385750006,1758006658122,-480.0,0.00023013,3]
[385750007,1758006658131,-442.14878029,0.00023013,3]
[385750008,1758006658141,-345.27893656,0.00023013,3]
[385750009,1758006658150,-179.81,0.00023013,3]
[385750010,1758006658159,-480.0,0.00023013,3]
[385750011,1758006658168,-480.0,0.00023013,3]
[385750012,1758006658177,-314.38,0.00023013,3]
[385750013,1758006658186,-480.0,0.00023013,3]
[385750014,1758006658195,-474.28057039,0.00023013,3]
[385750015,1758006658204,-480.0,0.00023013,3]
[385750016,1758006658213,-247.27819196,0.00023013,3]
[385750017,1758006658221,-480.0,0.00023013,3]
[385750018,1758006658230,-480.0,0.00023013,3]
[385750019,1758006658239,-480.0,0.00023013,3]
[385750020,1758006658248,-480.0,0.00023013,3]
[385750021,1758006658257,-514.58158563,0.00023013,3]
[385750022,1758006658266,-480.0,0.00023013,3]
[385750023,1758006658275,-606.43,0.00023013,3]
[385750024,1758006658291,-480.0,0.00023013,3]
[385750025,1758006658300,-480.0,0.00023013,3]
[385750026,1758006658309,-480.0,0.00023013,3]
[385750027,1758006658318,-472.77516837,0.00023013,3]
[385750028,1758006658327,-953.27,0.00023013,3]
[385750029,1758006658336,-480.0,0.00023013,3]
[385750030,1758006658345,-480.0,0.00023013,3]
[385750031,1758006658354,-535.32086701,0.00023013,3]
[385750032,1758006658363,-528.67122266,0.00023013,3]
[385750033,1758006658372,-480.0,0.00023013,3]
[385750034,1758006658381,-480.0,0.00023013,3]
[385750035,1758006658390,-874.95,0.00023013,3]
[385750036,1758006658399,-480.0,0.00023013,3]
[385750037,1758006658408,-944.35,0.00023013,3]
[385750038,1758006658418,-480.0,0.00023013,3]
[385750039,1758006658427,-1086.46,0.00023013,3]
[385750040,1758006658436,-480.0,0.00023013,3]
[385750041,1758006658445,-349.81122862,0.00023013,3]
[385750042,1758006658454,-516.01,0.00023013,3]
[385750043,1758006658464,-480.0,0.00023013,3]
[385750044,1758006658473,-480.0,0.00023013,3]
[385750045,1758006658482,-480.0,0.00023013,3]
[385750046,1758006658492,-480.0,0.00023013,3]
[385750047,1758006658500,-480.0,0.00023013,3]
[385750048,1758006658510,-480.0,0.00023013,3]
[385750049,1758006658519,-480.0,0.00023013,3]
[385750050,1758006658528,-480.0,0.00023013,3]
[385750051,1758006658537,-480.0,0.00023013,3]
[385750052,1758006658546,-480.0,0.00023013,3]
[385750053,1758006658555,-480.0,0.00023013,3]
[385750054,1758006658564,-300.0,0.00023013,2]
[385750055,1758006658573,-656.67,0.00023013,3]
[385750056,1758006658583,-480.0,0.00023013,3]
[385750057,1758006658592,-5824.76,0.00023013,3]
[385750058,1758006658602,-381.02,0.00023013,3]
[385750059,1758006658611,-480.0,0.00023013,3]
[385750060,1758006658621,-564.74770758,0.00023013,3]
[385750061,1758006658630,-480.0,0.00023013,3]
[385750062,1758006658640,-480.0,0.00023013,3]
[385750063,1758006658649,-480.0,0.00023013,3]
[385750064,1758006658659,-480.0,0.00023013,3]
[385750065,1758006658668,-591.66,0.00023013,3]
[385750066,1758006658678,-264.03,0.00023013,3]
[385750067,1758006658687,-287.93,0.00023013,3]
[385750068,1758006658697,-834.08,0.00023013,3]
[385750069,1758006658707,-480.0,0.00023013,3]
[385750070,1758006658716,-580.45,0.00023013,3]
[385750071,1758006658726,-459.96169356,0.00023013,3]
[385750072,1758006658735,-596.52,0.00023013,3]
[385750073,1758006658744,-629.95644982,0.00023013,3]
[385750074,1758006658754,-568.02,0.00023013,3]
[385750075,1758006658763,-480.0,0.00023013,3]
[385750076,1758006658772,-811.3,0.00023013,3]
[385750077,1758006658782,-480.0,0.00023013,3]
[385750078,1758006658791,-480.0,0.00023013,3]
[385750079,1758006658800,-480.0,0.00023013,3]
[385750080,1758006658809,-480.0,0.00023013,3]
[385750081,1758006658819,-2916.34,0.00023013,3]
[385750082,1758006658828,-480.0,0.00023013,3]
[385750083,1758006658837,-480.0,0.00023013,3]
[385750084,1758006658847,-480.0,0.00023013,3]
[385750085,1758006658856,-480.0,0.00023013,3]
[385750086,1758006658865,-616.56,0.00023013,3]
[385750087,1758006658875,-480.0,0.00023013,3]
[385750088,1758006658884,-300.0,0.00023021,2]
[385750089,1758006658893,-305.5098032,0.00023061,2]
[385750090,1758006658902,-1003.35921457,0.00023068,2]
[385750091,1758006658911,-1500.0,0.00023068,2]
[385750092,1758006658921,-1500.0,0.00023068,2]
[385750093,1758006658930,-1500.0,0.00023068,2]
[385750094,1758006658939,-1500.0,0.00023068,2]
[385750095,1758006658948,-1500.0,0.00023068,2]
[385750096,1758006658958,-521.50871399,0.00023068,2]
[385750097,1758006658967,-1281.04191308,0.00023068,2]
[385750098,1758006658976,-444.31084818,0.00023068,2]
[385750099,1758006658986,-1244.99550726,0.00023068,2]
[385750100,1758006658994,-1003.87396356,0.00023068,2]
[385750101,1758006659003,-178.58858412,0.00023068,2]
[385750102,1758006659013,-1504.09354393,0.00023068,2]
[385750103,1758006659022,-1500.0,0.00023068,2]
[385750104,1758006659031,-1500.0,0.00023068,2]
[385750105,1758006659040,-853.509972,0.00023068,2]
[385750106,1758006659050,-1500.0,0.00023068,2]
[385750107,1758006659059,-1501.82102218,0.00023068,2]
[385750108,1758006659068,-2300.0,0.00023087,2]
[385750109,1758006659077,-168.0,0.00023101,2]
[385750110,1758006659086,-168.0,0.00023108,2]
[385750111,1758006659095,-168.0,0.00023117,2]
[385750112,1758006659104,-151.0,0.00023134,2]
[385750113,1758006659114,-151.0,0.00023134,2]
[385750114,1758006659123,-151.0,0.00023134,2]
[385750115,1758006659132,-151.0,0.00023134,2]
[385750116,1758006659142,-151.0,0.00023134,2]
[385750117,1758006659151,-153.11569432,0.00023134,2]
[385750118,1758006659160,-188.5913251,0.00023134,2]
[385750119,1758006659169,-151.0,0.00023134,2]
[385750120,1758006659178,-152.97986127,0.00023134,2]
[385750121,1758006659187,-500.0,0.00023134,2]
[385750122,1758006659196,-500.0,0.00023134,2]
[385750123,1758006659205,-500.0,0.00023134,2]
[385750124,1758006659214,-500.0,0.00023134,2]
[385750125,1758006659224,-500.0,0.00023134,2]
[385750126,1758006659233,-500.0,0.00023134,2]
[385750127,1758006659242,-500.0,0.00023134,2]
[385750128,1758006659251,-500.0,0.00023134,2]
[385750129,1758006659261,-434.31712184,0.00023134,2]
[385750130,1758006659290,-65.68287816,0.00023134,2]
[385750131,1758006659380,-500.0,0.00023134,2]
[385750132,1758006659390,-500.0,0.00023134,2]
[385750133,1758006659399,-500.0,0.00023134,2]
[385750134,1758006659408,-500.0,0.00023134,2]
[385750135,1758006659417,-500.0,0.00023134,2]
[385750136,1758006659426,-250.0,0.00023134,2]
[385750137,1758006659435,-259.13540359,0.00023134,2]
[385750138,1758006659444,-13863.8686145,0.00023134,2]
[385750139,1758006660730,-805.56,0.00021057,10]
[385750140,1758006660739,-10406.50729233,0.00021073,2]
[385750141,1758006660962,-17129.74480318,0.00021073,2]
[385750142,1758006660974,-3277.36483182,0.00021073,2]
[385750143,1758006660985,-2555.14659356,0.00021073,2]
[385750144,1758006661002,-3564.61788607,0.00021073,2]
[385750145,1758006664954,204.040966,0.0002004,2]
[385750146,1758006702209,152.770812,0.00027816,30]
[385750147,1758006708255,152.770812,0.00027887,50]
[385750148,1758006764939,152.770812,0.00027128,30]
[385750149,1758006765975,152.770812,0.00026032,30]
[385750150,1758006768943,152.770812,0.00027744,50]
[385750151,1758006769337,152.770812,0.00026715,50]
[385750152,1758006903143,415.27,0.000249,120]
[385750153,1758006934156,201.3248874,0.0001999,2]
[385750154,1758006962107,310.0,0.00028,30]
[385750155,1758006979373,591.642094,0.00027699,30]
[385750156,1758007008231,152.0,0.00028,30]
[385750157,1758007046195,500.444822,0.00019982,2]
[385750158,1758007046616,247.846721,0.00020247,2]
[385750160,1758007047978,878.556867,0.00020326,2]
[385750161,1758007049084,524.62008831,0.00020327,2]
[385750162,1758007104390,98107.14711006,0.0002,4]
[385750163,1758007149632,170.461801,0.00027397,120]
[385750164,1758007158883,4664.30015138,0.00020526,2]
[385750165,1758007179946,173.315537,0.00020116,2]
[385750166,1758007197570,666.0,0.0001999,2]
[385750167,1758007203130,204.53848329,0.000249,120]
[385750169,1758007252222,2000.0,0.00028,30]
[385750170,1758007268732,3071.838,0.00028,30]
[385750171,1758007305300,152.770813,0.00027128,30]
[385750172,1758007319857,5000.0,0.00028,30]
[385750180,1758007420762,775.6703776,0.00019954,2]
[385750186,1758007498292,26916.8022782,0.00019953,2]
[385750187,1758007529760,382.080028,0.0001994,2]
[385750189,1758007548670,3159.2105581,0.0001994,2]
[385750190,1758007566820,1824.0,0.00028,30]
[385750194,1758007631102,-927.08952951,0.000206,2]
[385750196,1758007653117,5000.0,0.00028,30]
[385750197,1758007685813,204.040966,0.0001994,2]
[385750201,1758007693996,418.43462381,0.00010618,2]
[385750202,1758007702951,1002.57083789,0.00015,2]
[385750205,1758007716409,1333.99996688,0.00024,60]
[385750208,1758007718342,858.1077042,0.00025,30]
[385750209,1758007718894,585.3765457,0.000149,2]
[385750211,1758007719916,30909.65894221,0.00026,30]
[385750214,1758007723520,3355.54014389,0.00013,2]
[385750216,1758007727277,259.66686184,0.00015,2]
[385750217,1758007731017,-66.89987155,0.000206,2]
[385750218,1758007731040,-204.24428535,0.000207,2]
[385750219,1758007731062,-1740.56130033,0.00020856,2]
[385750220,1758007731084,-208.17437091,0.00020873,2]
[385750221,1758007731107,-309.92,0.00020947,3]
[385750222,1758007731130,-1200.0,0.00020954,2]
[385750223,1758007731153,-245.0,0.00020955,2]
[385750224,1758007731177,-300.0,0.00020955,2]
[385750225,1758007731201,-1879.7689176,0.00020956,2]
[385750226,1758007731223,-251.60008603,0.00020956,2]
[385750227,1758007731246,-424.21616303,0.00020956,2]
[385750228,1758007731271,-1044.25198611,0.00020956,2]
[385750229,1758007731296,-1044.25198611,0.00020956,2]
[385750230,1758007731321,-1044.25198611,0.00020956,2]
[385750231,1758007731346,-1044.25198611,0.00020956,2]
[385750232,1758007731371,-1044.25198611,0.00020956,2]
[385750233,1758007731396,-1044.25198611,0.00020956,2]
[385750234,1758007731421,-1044.25198611,0.00020956,2]
[385750235,1758007731447,-1044.25198611,0.00020956,2]
[385750236,1758007731471,-1044.25198611,0.00020956,2]
[385750237,1758007731496,-1044.25198611,0.00020956,2]
[385750238,1758007731522,-1044.25198611,0.00020956,2]
[385750239,1758007731546,-1044.25198611,0.00020956,2]
[385750240,1758007731569,-1044.25198611,0.00020956,2]
[385750241,1758007731594,-1044.25198611,0.00020956,2]
[385750242,1758007731617,-424.13304936,0.00020956,2]
[385750243,1758007731641,-154.03640722,0.00020956,2]
[385750244,1758007731667,-500.0,0.00020956,2]
[385750245,1758007731693,-596.98770758,0.00020956,2]
[385750246,1758007731719,-1096.46458541,0.00020956,2]
[385750247,1758007731744,-1096.46458541,0.00020956,2]
[385750248,1758007731769,-1096.46458541,0.00020956,2]
[385750249,1758007731794,-1096.46458541,0.00020956,2]
[385750250,1758007731818,-1096.46458541,0.00020956,2]
[385750251,1758007731842,-1096.46458541,0.00020956,2]
[385750252,1758007731869,-1096.46458541,0.00020956,2]
[385750253,1758007731894,-1096.46458541,0.00020956,2]
[385750254,1758007731919,-1096.46458541,0.00020956,2]
[385750255,1758007731945,-1096.46458541,0.00020956,2]
[385750256,1758007731970,-1096.46458541,0.00020956,2]
[385750257,1758007731994,-1096.46458541,0.00020956,2]
[385750258,1758007732019,-1403.47466935,0.00020956,2]
[385750259,1758007732043,-1091.53922123,0.00020956,2]
[385750296,1758007838296,-166.53949672,0.00020873,2]
[385750298,1758007838308,-311.93544812,0.00020956,2]
[385750300,1758007838320,-300.0,0.00020956,2]
[385750303,1758007838331,-1200.0,0.00020956,2]
[385750305,1758007838343,-552.2144404,0.00020957,2]
[385750307,1758007838357,-4040.15314242,0.00020957,2]
[385750327,1758007838533,-4514.87656688,0.00020957,2]
[385750330,1758007838547,-20441.26358404,0.00020957,2]
[385750332,1758007838560,-3241.23471311,0.00020957,2]
[385750384,1758007840471,-2181.09086732,0.00020957,2]
[385750385,1758007840486,-157142.18901121,0.00020957,2]
[385750386,1758007840497,-500.0,0.00020973,2]
[385750387,1758007840509,-500.0,0.00020973,2]
[385750388,1758007840519,-500.0,0.00020973,2]
[385750389,1758007840530,-332.23355405,0.00020973,2]
[385750390,1758007840540,-500.0,0.00020973,2]
[385750391,1758007840549,-411.06922566,0.00020973,2]
[385750392,1758007840558,-503.77118547,0.00020973,2]
[385750393,1758007840567,-500.0,0.00020973,2]
[385750394,1758007840576,-529.62581505,0.0002109,2]
[385750395,1758007840585,-166.53949669,0.0002116,2]
[385750396,1758007840594,-300.0,0.00021493,20]
[385750397,1758007840744,-300.0,0.00021493,20]
[385750398,1758007840756,-300.0,0.00021493,20]
[385750399,1758007840767,-300.0,0.00021493,20]
[385750400,1758007840777,-300.0,0.00021493,20]
[385750401,1758007840786,-300.0,0.00021493,20]
[385750402,1758007840796,-300.0,0.00021493,20]
[385750403,1758007840805,-300.0,0.00021493,20]
[385750404,1758007840815,-300.0,0.00021493,20]
[385750405,1758007840824,-300.0,0.00021493,20]
[385750406,1758007840833,-300.0,0.00021493,20]
[385750407,1758007840843,-300.0,0.00021493,20]
[385750408,1758007840853,-300.0,0.00021493,20]
[385750409,1758007840863,-50.89486294,0.00021493,20]
[385750410,1758007840874,-249.10513706,0.00021493,20]
[385750411,1758007840883,-300.0,0.00021493,20]
[385750412,1758007840892,-1000.0,0.00021521,2]
[385750413,1758007840901,-1000.0,0.00021521,2]
[385750414,1758007840911,-1000.0,0.00021521,2]
[385750415,1758007840922,-1000.0,0.00021521,2]
[385750416,1758007840931,-1111.72575167,0.00021521,2]
[385750417,1758007840940,-270.0,0.00021816,2]
[385750418,1758007840949,-8779.22907395,0.00021817,3]
[385750419,1758007840958,-8249.94003732,0.00021817,2]
[385750424,1758007844253,-166.53949669,0.00021447,2]
[385750425,1758007844262,-166.53949669,0.00021734,2]
[385750426,1758007844272,-393.73110843,0.00021817,2]
[385750427,1758007844286,-509.76319108,0.00021817,2]
[385750433,1758007846520,-500.0,0.00021817,2]
[385750434,1758007847721,152.770813,0.00027552,30]
[385750435,1758007848125,152.770813,0.00026554,30]
[385750436,1758007850192,152.770813,0.0002784,50]
[385750437,1758007915692,-10000.01,0.00020857,2]
[385750438,1758007923616,-300.0,0.00020856,2]
[385750439,1758007923636,-300.0,0.00020857,2]
[385750440,1758007923648,-9400.01,0.00020857,2]
[385750441,1758007941861,917.21432181,0.00020526,2]
[385750442,1758007954121,2762.95442684,0.00020526,2]
[385750443,1758007968725,5000.0,0.00020526,2]
[385750444,1758007973819,-10000.01,0.00020857,2]
[385750445,1758007980882,-10000.01,0.00020857,2]
[385750446,1758007987751,-293.42237991,0.00020856,2]
[385750447,1758007992215,-6.57762009,0.00020856,2]
[385750448,1758007992240,-148.88232049,0.00020857,2]
[385750449,1758007994195,5000.0,0.00020526,2]
[385750450,1758007995263,-365.26080407,0.00020857,2]
[385750451,1758007999352,-172.72673596,0.00020857,2]
[385750452,1758008004867,-293.90784349,0.00020857,2]
[385750453,1758008007337,-254.68325408,0.00020857,2]
[385750454,1758008009199,-191.13106353,0.00020857,2]
[385750455,1758008010666,-240.67913411,0.00020857,2]
[385750456,1758008014598,-168.300064,0.00020857,2]
[385750457,1758008016166,-393.72357633,0.00020857,2]
[385750458,1758008018154,-167.33877011,0.00020857,2]
[385750459,1758008019691,2400.0,0.00020526,2]
[385750460,1758008022263,-243.18141578,0.00020857,2]
[385750461,1758008024685,-332.30512038,0.00020857,2]
[385750462,1758008027577,-174.970133,0.00020857,2]
[385750463,1758008028775,-10000.01,0.00020857,2]
[385750464,1758008028902,-2077.66885325,0.00020857,2]
[385750465,1758008028933,-230.61599698,0.00020955,2]
[385750466,1758008028963,-500.0,0.00020955,2]
[385750467,1758008028993,-500.0,0.00020955,2]
[385750468,1758008029022,-199.15391318,0.00020955,2]
[385750469,1758008029051,-235.24117297,0.00020955,2]
[385750470,1758008029082,-500.0,0.00020955,2]
[385750471,1758008029111,-500.0,0.00020955,2]
[385750472,1758008029143,-14.65012724,0.00020955,2]
[385750473,1758008029272,-485.34987276,0.00020955,2]
[385750474,1758008029283,-372.82317199,0.00020955,2]
[385750475,1758008029293,-500.0,0.00020955,2]
[385750476,1758008029303,-500.0,0.00020955,2]
[385750477,1758008029313,-219.4958085,0.00020955,2]
[385750478,1758008029325,-230.61599698,0.00020955,2]
[385750479,1758008029340,-49.88819452,0.00020955,2]
[385750480,1758008029350,-242.22368997,0.00020955,2]
[385750481,1758008029360,-207.88811551,0.00020955,2]
[385750482,1758008029371,-292.11188449,0.00020955,2]
[385750483,1758008029380,-207.88811551,0.00020955,2]
[385750484,1758008029396,-199.15391318,0.00020955,2]
[385750485,1758008029408,-92.95797131,0.00020955,2]
[385750486,1758008029417,-142.28320166,0.00020955,2]
[385750487,1758008029429,-357.71679834,0.00020955,2]
[385750488,1758008029438,-142.28320166,0.00020955,2]
[385750489,1758008029453,-357.71679834,0.00020955,2]
[385750490,1758008029462,-142.28320166,0.00020955,2]
[385750491,1758008029473,-357.71679834,0.00020955,2]
[385750492,1758008029482,-142.28320166,0.00020955,2]
[385750493,1758008038814,-357.71679834,0.00020955,2]
[385750494,1758008038843,-500.0,0.00020955,2]
[385750495,1758008038872,-500.0,0.00020955,2]
[385750496,1758008038901,-597.69489852,0.00020955,2]
[385750497,1758008038931,-500.0,0.00020955,2]
[385750498,1758008038960,-500.0,0.00020955,2]
[385750499,1758008038990,-500.0,0.00020955,2]
[385750500,1758008039019,-500.0,0.00020955,2]
[385750501,1758008039048,-500.0,0.00020955,2]
[385750502,1758008039075,-500.0,0.00020955,2]
[385750503,1758008039095,-357.71679834,0.00020955,2]
[385750504,1758008039106,-142.28320166,0.00020955,2]
[385750505,1758008039115,-357.71679834,0.00020955,2]
[385750506,1758008039126,-142.28320166,0.00020955,2]
[385750507,1758008039135,-357.71679834,0.00020955,2]
[385750508,1758008039147,-142.28320166,0.00020955,2]
[385750509,1758008039159,-455.41169686,0.00020955,2]
[385750510,1758008039170,-44.58830314,0.00020955,2]
[385750511,1758008039179,-455.41169686,0.00020955,2]
[385750512,1758008039195,-44.58830314,0.00020955,2]
[385750513,1758008039204,-188.89478327,0.00020955,2]
[385750514,1758008039212,-266.51691359,0.00020955,2]
[385750515,1758008039223,-233.48308641,0.00020955,2]
[385750516,1758008039233,-266.51691359,0.00020955,2]
[385750517,1758008039248,-233.48308641,0.00020955,2]
[385750518,1758008039257,-266.51691359,0.00021038,2]
[385750519,1758008039268,-500.0,0.00021038,2]
[385750520,1758008039448,-500.0,0.00021038,2]
[385750521,1758008039464,-89.18660628,0.00021038,2]
[385750522,1758008039510,-10000.01,0.00021038,2]
[385750523,1758008054160,-163.27744421,0.00020828,2]
[385750524,1758008056671,-300.50623051,0.00020828,2]
[385750525,1758008060287,-165.77456623,0.00020828,2]
[385750526,1758008061771,-196.91157007,0.00020828,2]
[385750527,1758008063190,-431.86119454,0.00020828,2]
[385750528,1758008065094,-440.13023696,0.00020828,2]
[385750529,1758008067551,-166.66666667,0.00020828,2]
[385750530,1758008068833,-3134.87209081,0.00020828,2]
[385750531,1758008068853,-3134.87209081,0.00020857,2]
[385750532,1758008068864,-3730.26581838,0.00020857,2]
[385750533,1758008068998,-156.68162977,0.00020857,2]
[385750534,1758008070930,-495.10764976,0.00020857,2]
[385750535,1758008071629,5000.0,0.00019178,2]
[385750536,1758008073939,-587.84249265,0.00020857,2]
[385750537,1758008075490,-165.7745662,0.00020857,2]
[385750538,1758008078553,-189.30466192,0.00020857,2]
[385750539,1758008078871,-1540.16109051,0.00020857,2]
[385750540,1758008078900,-2589.79369265,0.00021038,2]
[385750541,1758008078912,-1540.16109051,0.00021038,2]
[385750542,1758008078922,-199.93934317,0.00021038,2]
[385750543,1758008079201,170.461801,0.00027397,120]
[385750544,1758008141177,-151.0,0.00021038,2]
[385750545,1758008141206,-155.81930119,0.00021038,2]
[385750546,1758008149057,-6191.60844136,0.00021617,2]
[385750547,1758008149175,-4821.28794136,0.00021617,2]
[385750548,1758008149198,-357.43411728,0.00021617,2]
[385750549,1758008149290,-10000.01,0.00021666,2]
[385750550,1758008158994,-1370.3205,0.00021666,2]
[385750551,1758008159027,-7259.369,0.00021715,2]
[385750552,1758008179062,-5000.0,0.00021497,2]
[385750553,1758008179098,-0.01,0.00021714,2]
[385750554,1758008182602,1306.2541774,0.00027699,30]
[385750555,1758008199179,-5000.0,0.00021497,2]
[385750556,1758008199211,-0.01,0.00021714,2]
[385750557,1758008213692,-161.23327438,0.00021291,2]
[385750558,1758008216641,-308.74400595,0.00021291,2]
[385750559,1758008218084,-512.76360136,0.00021291,2]
[385750560,1758008219105,-10000.01,0.00021291,2]
[385750561,1758008219220,-10000.01,0.00021291,2]
[385750562,1758008219581,-166.5117253,0.00021291,2]
[385750563,1758008222107,-158.36320034,0.00021291,2]
[385750564,1758008229165,-300.0,0.0002129,2]
[385750565,1758008229194,-3676.99535463,0.00021291,2]
[385750566,1758008229337,-2046.01929074,0.00021291,2]
[385750567,1758008235288,296.0556271,0.00027699,30]
[385750568,1758008237823,153.2733732,0.00027699,30]
[385750569,1758008239331,314.452009,0.00027699,30]
[385750570,1758008261322,-340.655678,0.00020853,2]
[385750571,1758008261449,-307.12905499,0.00021064,2]
[385750572,1758008261481,-1272.63036435,0.00021283,2]
[385750573,1758008261548,-6159.17980532,0.00021291,2]
[385750574,1758008279935,213.38,0.00016384,7]
[385750575,1758008297004,188.632234,0.00027699,30]
[385750576,1758008297105,327.1218782,0.00027699,30]
[385750577,1758008302999,289.9026695,0.00027699,30]
[385750578,1758008323695,161.9066564,0.00027699,30]
[385750584,1758008329297,-9786.63,0.00020898,2]
[385750585,1758008329408,-213.38,0.00020898,2]
[385750586,1758008329440,-4573.25,0.00021078,2]
[385750587,1758008329475,-426.75,0.00021078,2]
[385750588,1758008356180,159.0,0.00028,30]
[385750589,1758008362225,-179.82183482,0.00021078,2]
[385750590,1758008364491,159.0,0.00028,30]
[385750591,1758008401559,-4820.17816518,0.00021078,2]
[385750592,1758008401598,-359.65366964,0.00021291,2]
[385750593,1758008401692,-2112.01991244,0.00021291,2]
[385750594,1758008401722,-775.97017512,0.00021498,2]
[385750595,1758008401758,-4224.02982488,0.00021498,2]
[385750596,1758008401862,-10000.01,0.00021717,2]
[385750597,1758008429593,-256.8014648,0.00020792,2]
[385750598,1758008429625,-1630.4288685,0.0002133,2]
[385750599,1758008429670,-6225.5493334,0.0002133,2]
[385750600,1758008429706,-212.0,0.00021497,2]
[385750601,1758008429735,-266.0,0.00021497,2]
[385750602,1758008429763,-300.0,0.00021497,2]
[385750603,1758008429794,-1200.0,0.00021716,2]
[385750604,1758008429886,-6044.01,0.00021717,2]
[385750605,1758008430930,5000.0,0.00020526,2]
[385750606,1758008436740,159.29361874,0.000205,2]
[385750607,1758008474988,-228.42226009,0.00020956,7]
[385750608,1758008478623,-184.11073457,0.00020956,7]
[385750609,1758008483498,-74.50322199,0.00020956,7]
[385750610,1758008483527,-78.65561363,0.00021285,2]
[385750611,1758008485546,-238.44442916,0.00021285,2]
[385750612,1758008490596,-266.27671976,0.00021285,2]
[385750613,1758008501789,-4416.62323745,0.00021285,2]
[385750614,1758008501898,-5000.0,0.000215,2]
[385750615,1758008509759,-5000.0,0.00021072,2]
[385750616,1758008509831,-2840.3503699,0.00021714,2]
[385750617,1758008509860,-245.93386369,0.00021714,2]
[385750618,1758008519710,-5000.0,0.00021497,2]
[385750619,1758008519859,-0.01,0.00021614,2]
[385750620,1758008519903,-4110.9515,0.00021614,2]
[385750621,1758008519938,-1778.107,0.00021714,2]
[385750622,1758008575222,159.0,8.3e-07,2]
[385750623,1758008576401,159.0,8.3e-07,2]
[385750624,1758008577569,159.0,8.3e-07,2]
[385750625,1758008596245,215.0,0.00027,120]
[385750626,1758008609951,-3554.13495712,0.00021281,2]
[385750627,1758008610020,-2414.74008576,0.00021353,2]
[385750628,1758008610066,-4558.77188386,0.00021353,2]
[385750629,1758008610089,-882.46623228,0.00021353,2]
[385750630,1758008630196,-5000.0,0.00021496,2]